Workbook

Sheet Estimate
A1: BHARAT HEAVY ELECTRICAL LIMITED , JHANSI
A2: Factory Civil Department
A3: Price bid
A4: Name of Work: Repair and maintenance of roof & side sheeting work of sheds inside factory area.
A5: Tender Enquiry No-FCX/TW/23/09
A6: Sr.No | B6: Description of Work | C6: % allocation | D6: Unit | E6: Quantity | F6: Rate (Rs) | G6: Amount(Rs) | H6: Rate | I6: Amount (Rs)
A7: 1 | B7: Fixing Polycarbonate sheet/ AC sheet/ Galvalume sheet of matching profile at the roof top of manufacturing blocks and other structures including removal of existing old GS Sheet/ Galvalume Sheet/ AC sheet including removal of ridges, hips valley, gutters etc. and stacking the material at appropriate places as per instruction of engineer-in- charge. To avoid breakage of sheets, adjacent sheets will also be required to be removed /loosened and then fixed accordingly. For measurement, overlap between new and existing sheet will not be deducted and would be considered during calculation of area. Whereas, the overlap arising between new sheets would be deducted during calculation of area. The above item comprises of all the activities required to replace the existing sheet with Polycarbonate sheet/ AC sheet/ Galvalume sheet (All items shall be issued by BHEL free of cost)
A8: a | B8: Replacement upto 7 mtr height | C8: =G8/495205.92 -> 0.1545025754 | D8: Sqm | E8: 325 | F8: 235.4172 | G8: =E8*F8 -> 76510.59 | H8: =ROUND(I8/E8,4) -> 0 | I8: =$I$16*C8 -> 0
A9: b | B9: Replacement above 7 mtr height | C9: =G9/495205.92 -> 0.2275649693 | D9: Sqm | E9: 400 | F9: 281.7288 | G9: =E9*F9 -> 112691.52 | H9: =ROUND(I9/E9,4) -> 0 | I9: =$I$16*C9 -> 0
A10: 2 | B10: Replacing broken /defective Louver (All items shall be issued by BHEL free of cost) | C10: 0.01472937561 | D10: Mtr | E10: 30 | F10: 243.1358 | G10: 7294.074 | H10: 0 | I10: 0
A11: 3 | B11: Cleaning of Roof Gutters in factory area at height any height (All items shall be issued by BHEL free of cost) | C11: 0.233799709 | D11: Mtr | E11: 5000 | F11: 23.1558 | G11: 115779 | H11: 0 | I11: 0
A12: 4 | B12: Repairing of downtake MS pipe/ joint for 100 mm, 150 mm dia pipe at different places inside factory premises (All items shall be issued by BHEL free of cost) | C12: 0.05844990706 | D12: Mtr | E12: 100 | F12: 289.4474 | G12: 28944.74 | H12: 0 | I12: 0
A13: 5 | B13: Replacing of old gutter and/or fixing of new M.S. Gutter situated at different places inside factory premises. (All items shall be issued by BHEL free of cost) | C13: 0.03896659798 | D13: Mtr | E13: 50 | F13: 385.9298 | G13: 19296.49 | H13: 0 | I13: 0
A14: 6 | B14: Inspection and maintenance of roof sheeting including filling of holes by bitumastic compound/bitumen washer /M seal etc. to stop the leakage of roof from an area of 150 Sqm . (All items shall be issued by BHEL free of cost) | C14: 0.2415929075 | D14: Nos | E14: 620 | F14: 192.9649 | G14: 119638.238 | H14: 0 | I14: 0
A15: 7 | B15: Fixing of wind tie as required at the top of the roof of various blocks as per the direction of Engineer - In - Charge (All items shall be issued by BHEL free of cost) | C15: 0.03039396217 | D15: Kg | E15: 650 | F15: 23.1558 | G15: 15051.27 | H15: 0 | I15: 0
C16: =SUM(C8:C15) -> 1.000000004 | D16: Sub Total "A" | G16: =SUM(G8:G15) -> 495205.922 | I16: 0
A17: In words | D17: =rup(I16) -> 0
B18: Note -GST extra as applicable
B20: 1. Bidder has to quote in above unlocked cell (I-17) only. Item rate shall be calculated automatically. Calculated item rates upto two decimal points may be adjusted w.r.t. gross total amount and it shall be the itemwise final rate for execution of contract and all other purposes.
B21: 2. Quoted gross total amount should be considered only if quoted in this excel sheet and print out of this should only be considered for evaluation. If Price is quoted in any other format other than the Excel Sheet enclosed to the NIT , the offer of the bidder will be rejected
D25: (Signature and Seal of Contractor )

Sheet Prie bid
A1: BHARAT HEAVY ELECTRICAL LIMITED , JHANSI
A2: Factory Civil Department
A3: Price bid
A4: Name of Work: Replacement of old/damaged Polycarbonate/FRP sheets in sheds inside factory area.
A5: Tender Enquiry No-FCX/TW/23/08
A7: Sr.No | B7: Description of Work | C7: % allocation | D7: Unit | E7: Quantity | F7: Rate | G7: Amount (RS) | H7: Rate | I7: Amount (Rs) | J7: Rate | K7: Amount (Rs)
A8: 1 | B8: Providing and fixing fire retardant and U.V. resistant profiled and solid transparent embossed polycarbonate sheet of minimum 3 mm thick of matching profile at the roof top of manufacturing blocks including: • Removal of existing old GS Sheet/ Galvalume Sheet including removal of ridges, hips valley, gutters etc. and stacking the material with 50 meters lead. To avoid breakage of sheets, adjacent sheets may also be required to be removed /loosened and then fixed accordingly. • Rates shall be inclusive of GI hooks, self-tapping screws or any other material required for fixing. For measurement, overlap between new and existing sheet will not be deducted and would be considered during calculation of area. Whereas, the overlap arising between new sheets would be deducted during calculation of area. During dismantling, if adjacent AC sheet gets broken, it shall be provided free of cost from BHEL and the fixing & installation shall be done by contractor at his own cost. The above item comprises of all the activities required to replace the existing sheet with Polycarbonate Sheet. | C8: =G8/480600 -> 0.6681231794 | D8: Sqm | E8: ='[1]MEASURMENT '!F19 -> 190 | F8: =[1]CST!I8 -> 1690 | G8: =E8*F8 -> 321100 | H8: =ROUND(I8/E8,2) -> 1846.13 | I8: =$I$10*C8 -> 350764.6692
A9: 2 | B9: Providing and fixing fiberglass reinforced plastic sheet 2 mm thick corrugated of matching profile at the roof top of manufacturing blocks including: • Removal of existing old GS Sheet/ AC sheet including removal of ridges, hips valley, gutters etc. and stacking the material with 50 meters lead. To avoid breakage of sheets, adjacent sheets may also be required to be removed /loosened and then fixed accordingly. • Rates shall be inclusive of GI hooks, self-tapping screws or any other material required for fixing. For measurement, overlap between new and existing sheet will not be deducted and would be considered during calculation of area. Whereas, the overlap arising between new sheets would be deducted during calculation of area. During dismantling, if adjacent AC sheet gets broken, it shall be provided free of cost from BHEL and the fixing & installation shall be done by contractor at his own cost. The above item comprises of all the activities required to replace the existing sheet with FRP Sheet. | C9: =G9/480600 -> 0.3318768206 | D9: Sqm | E9: ='[1]MEASURMENT '!F27 -> 145 | F9: =[1]CST!I9 -> 1100 | G9: =E9*F9 -> 159500 | H9: =ROUND(I9/E9,2) -> 1201.62 | I9: =$I$10*C9 -> 174235.3308
A10: Total | C10: =SUM(C8:C9) -> 1 | G10: =SUM(G8:G9) -> 480600 | I10: 525000
A11: In words | D11: =rup(I10) -> Rupees Five Lakh TwentyFive Thousand Only
B12: Note -GST extra as applicable
B14: 1. Bidder has to quote in above unlocked cell (I-10) only. Item rate shall be calculated automatically. Calculated item rates upto two decimal points may be adjusted w.r.t. gross total amount and it shall be the itemwise final rate for execution of contract and all other purposes.
B15: 2. Quoted gross total amount should be considered only if quoted in this excel sheet and print out of this should only be considered for evaluation. If Price is quoted in any other format other than the Excel Sheet enclosed to the NIT , the offer of the bidder will be rejected
D19: (Signature and Seal of Contractor )

Sheet Sheet1
